fUST/lending_fUST_20250719
["ID","MTS","AMOUNT","RATE_DAILY","PERIOD"]
[373279050,1752927068949,-251.2,0.00018099,2]
[373279052,1752927068962,-1108.46,0.00018373,2]
[373279054,1752927068972,-1108.46,0.00018647,2]
[373279056,1752927068982,-829.12,0.00021389,2]
[373279058,1752927068992,-829.12,0.00021663,2]
[373279060,1752927069002,-829.12,0.00021936,2]
[373279062,1752927069013,-829.12,0.0002221,2]
[373279063,1752927069023,-536.43811119,0.00022212,2]
[373279065,1752927069032,-151.0,0.00022212,7]
[373279067,1752927069042,-1105.49,0.00022212,2]
[373279069,1752927069052,-571.41,0.00022212,2]
[373279071,1752927069061,-1573.16,0.00022212,2]
[373279073,1752927069070,-1549.28,0.00022212,2]
[373279075,1752927069079,-500.0,0.00022222,2]
[373279077,1752927069088,-884.0,0.00022237,2]
[373279079,1752927069098,-160.0,0.00022274,4]
[373279081,1752927069108,-657.02117599,0.000223,2]
[373279084,1752927069118,-771.83,0.00022313,2]
[373279086,1752927069127,-500.0,0.00022317,2]
[373279088,1752927069137,-500.0,0.00022317,2]
[373279090,1752927069147,-302.0,0.00022317,2]
[373279092,1752927069156,-151.0,0.00022317,2]
[373279094,1752927069166,-198.0,0.00022317,2]
[373279096,1752927069175,-500.0,0.00022317,2]
[373279098,1752927069184,-151.0,0.00022317,2]
[373279100,1752927069193,-12500.0,0.0002233,7]
[373279102,1752927069203,-12500.0,0.00022344,7]
[373279104,1752927069215,-283.110076,0.00022359,7]
[373279106,1752927069224,-151.0,0.00022359,7]
[373279108,1752927069233,-151.0,0.00022359,7]
[373279110,1752927069243,-12500.0,0.00022365,7]
[373279112,1752927069252,-161.83540056,0.00022384,2]
[373279114,1752927069261,-206.0,0.0002239,2]
[373279116,1752927069271,-476.34170116,0.000224,7]
[373279118,1752927069281,-214.52603969,0.000224,7]
[373279120,1752927069290,-230.394089,0.00022402,2]
[373279122,1752927069300,-884.0,0.00022411,2]
[373279124,1752927069309,-151.0,0.00022413,7]
[373279126,1752927069318,-151.0,0.00022413,7]
[373279128,1752927069328,-5819.01530007,0.00022417,7]
[373279130,1752927069337,-230.394089,0.00022431,6]
[373279132,1752927069347,-250.0,0.00022466,2]
[373279134,1752927069356,-300.0,0.00022466,2]
[373279136,1752927069365,-230.394089,0.00022479,3]
[373279138,1752927069374,-884.0,0.00022483,2]
[373279140,1752927069384,-884.0,0.00022483,2]
[373279142,1752927069393,-1226.27,0.00022483,2]
[373279144,1752927069402,-3070.5,0.00022483,2]
[373279146,1752927069412,-416.41,0.00022484,2]
[373279148,1752927069421,-594.06,0.00022484,2]
[373279150,1752927069430,-484.39,0.00022484,2]
[373279152,1752927069440,-392.21924152,0.00022484,2]
[373279154,1752927069449,-1935.27,0.00022484,2]
[373279156,1752927069460,-578.82,0.00022484,2]
[373279158,1752927069471,-989.97,0.00022484,2]
[373279160,1752927069480,-978.7,0.00022484,2]
[373279162,1752927069490,-306.64,0.00022484,2]
[373279164,1752927069500,-2812.62,0.00022484,2]
[373279166,1752927069509,-521.57,0.00022484,2]
[373279168,1752927069518,-829.12,0.00022484,2]
[373279169,1752927069527,-1695.29,0.00022486,2]
[373279172,1752927069537,-1501.2,0.00022486,2]
[373279174,1752927069546,-1105.49,0.00022486,2]
[373279175,1752927069555,-571.41,0.00022486,2]
[373279177,1752927069565,-1573.16,0.00022486,2]
[373279180,1752927069576,-1549.28,0.00022486,2]
[373279181,1752927069587,-161.83540056,0.00022575,2]
[373279184,1752927069597,-771.83,0.00022587,2]
[373279185,1752927069607,-500.0,0.00022591,2]
[373279188,1752927069616,-500.0,0.00022591,2]
[373279189,1752927069627,-198.0,0.00022591,2]
[373279191,1752927069636,-884.0,0.00022595,2]
[373279193,1752927069645,-212.564492,0.000226,7]
[373279195,1752927069657,-188.673504,0.000226,7]
[373279197,1752927069666,-188.673504,0.000226,7]
[373279199,1752927069675,-425.859505,0.00022603,2]
[373279201,1752927069685,-200.0,0.00022603,2]
[373279203,1752927069694,-2231.02,0.00022629,3]
[373279205,1752927069704,-2000.0,0.0002266,2]
[373279207,1752927069715,-884.0,0.00022667,2]
[373279209,1752927069724,-200.0,0.0002268,5]
[373279211,1752927069734,-500.0,0.00022681,2]
[373279213,1752927069744,-2200.0,0.00022681,2]
[373279214,1752927069754,-968.0,0.00022693,2]
[373279216,1752927069763,-5819.01530007,0.00022693,7]
[373279218,1752927069774,-54370.13968652,0.000227,5]
[373279220,1752927069787,-20532.62834564,0.000227,5]
[373279222,1752927069798,-421.42340846,0.000227,5]
[373279226,1752927069851,-460.0,0.00016731,2]
[373279228,1752927069861,-460.0,0.00017005,2]
[373279230,1752927069871,-460.0,0.00017279,2]
[373279232,1752927069880,-1108.46,0.00018921,2]
[373279233,1752927069890,-1108.46,0.00019195,2]
[373279235,1752927069900,-1108.46,0.00019469,2]
[373279237,1752927069910,-1108.46,0.00019743,2]
[373279239,1752927069919,-4761.5205554,0.000227,5]
[373279240,1752927069931,-5460.0,0.000227,5]
[373279243,1752927069948,-460.0,0.00017553,2]
[373279244,1752927069958,-57807.05859808,0.000227,5]
[373279246,1752927069967,-2000.0,0.000227,2]
[373279248,1752927069977,-151.0,0.000227,7]
[373279249,1752927069986,-151.0,0.000227,7]
[373279257,1752927070077,-151.0,0.000227,7]
[373279259,1752927070087,-151.0,0.000227,7]
[373279261,1752927070096,-151.0,0.000227,7]
[373279262,1752927070106,-151.0,0.000227,7]
[373279264,1752927070116,-179.000455,0.000227,7]
[373279266,1752927070125,-179.000455,0.000227,7]
[373279267,1752927070135,-951.403261,0.000227,7]
[373279269,1752927070145,-951.403261,0.000227,7]
[373279271,1752927070154,-151.0,0.000227,7]
[373279273,1752927070163,-151.0,0.000227,7]
[373279275,1752927070173,-151.0,0.000227,7]
[373279276,1752927070183,-151.0,0.000227,7]
[373279278,1752927070192,-476.34170116,0.000227,3]
[373279280,1752927070202,-151.0,0.000227,7]
[373279282,1752927070213,-230.394089,0.0002272,6]
[373279284,1752927070222,-2231.02,0.00022729,2]
[373279286,1752927070231,-1226.27,0.00022756,2]
[373279287,1752927070241,-3070.5,0.00022756,2]
[373279289,1752927070250,-594.06,0.00022758,2]
[373279290,1752927070259,-484.39,0.00022758,2]
[373279292,1752927070268,-1935.27,0.00022758,2]
[373279294,1752927070278,-578.82,0.00022758,2]
[373279296,1752927070287,-989.97,0.00022758,2]
[373279298,1752927070296,-978.7,0.00022758,2]
[373279299,1752927070306,-2812.62,0.00022758,2]
[373279301,1752927070315,-521.57,0.00022758,2]
[373279303,1752927070324,-829.12,0.00022758,2]
[373279305,1752927070333,-1647.09655188,0.00022759,2]
[373284221,1752927284902,202.28361232,0.00016518,2]
[373284225,1752927335946,1588.311235,0.00015624,2]
[373284226,1752927517190,24900.0,0.00015625,2]
[373284227,1752927601750,-1386.08725924,0.00016526,2]
[373284228,1752927601772,-987.0,0.00016529,2]
[373284229,1752927601793,-11254.10257878,0.00016529,2]
[373284230,1752927601815,-1200.0,0.00016617,2]
[373284231,1752927601839,-278.01,0.00016618,3]
[373284232,1752927601863,-664.6,0.00016618,3]
[373284233,1752927601898,-332.3,0.00016618,3]
[373284234,1752927601923,-166.15,0.00016618,3]
[373284235,1752927601945,-498.49,0.00016618,3]
[373284236,1752927601967,-460.0,0.00016625,2]
[373284237,1752927601991,-460.0,0.00016626,2]
[373284238,1752927602014,-460.0,0.00016626,2]
[373284239,1752927602036,-460.0,0.00016626,2]
[373284240,1752927602058,-460.0,0.00016626,2]
[373284241,1752927602079,-460.0,0.00016626,2]
[373284242,1752927602101,-460.0,0.00016626,2]
[373284243,1752927602124,-460.0,0.00016626,2]
[373284244,1752927602145,-460.0,0.00016626,2]
[373284245,1752927602166,-460.0,0.00016626,2]
[373284246,1752927602190,-460.0,0.00016626,2]
[373284247,1752927602212,-460.0,0.00016626,2]
[373284248,1752927602234,-460.0,0.00016626,2]
[373284249,1752927602257,-256.58209565,0.00016626,2]
[373284250,1752927602279,-1044.67806633,0.00016626,2]
[373284251,1752927661331,10000.0,0.00015576,2]
[373284252,1752927776260,187.828572,0.00016028,2]
[373284253,1752927776607,187.828572,0.00016029,2]
[373284254,1752927776961,187.828572,0.00016029,2]
[373284255,1752927777309,187.828572,0.00016029,2]
[373284256,1752927777662,460.97618331,0.00016032,2]
[373284257,1752927784481,314.05659257,0.00016356,2]
[373284258,1752927892153,181.93013061,0.00016428,2]
[373284259,1752927892499,181.93013059,0.0001646,2]
[373284260,1752927892829,181.93013059,0.00016492,2]
[373284267,1752927989435,181.93013059,0.00016517,2]
[373284273,1752928012747,495.517248,0.00013699,2]
[373284276,1752928078919,351.71713878,0.00016125,2]
[373284285,1752928095590,414.68002333,0.00010618,2]
[373284286,1752928097645,11369.96686722,0.000125,2]
[373284287,1752928109548,277.53287334,0.00014114,2]
[373284288,1752928111601,282.37655837,0.0001,2]
[373284291,1752928121646,580.09906324,0.000149,2]
[373284292,1752928121867,1000.0,0.0001,2]
[373284293,1752928125251,16000.0,0.00015,2]
[373284294,1752928126177,210.52573322,0.00016,2]
[373284295,1752928127517,5501.94625275,0.0001,2]
[373284296,1752928167975,-1212.82635187,0.00016524,2]
[373284297,1752928168007,-7502.73505252,0.00016573,2]
[373284298,1752928168035,-240.17,0.00016617,3]
[373284299,1752928168059,-720.56,0.00016617,3]
[373284300,1752928168081,-323.70859561,0.00016618,3]
[373284408,1752928237927,-156.64140439,0.00016618,3]
[373284410,1752928237936,-300.0,0.00016622,2]
[373284412,1752928237946,-893.0,0.00016622,2]
[373284414,1752928237956,-460.0,0.00016623,2]
[373284416,1752928237967,-460.0,0.00016623,2]
[373284419,1752928237977,-460.0,0.00016623,2]
[373284422,1752928237986,-460.0,0.00016623,2]
[373284423,1752928237996,-460.0,0.00016623,2]
[373284424,1752928238005,-460.0,0.00016623,2]
[373284425,1752928238015,-817.51,0.00016623,2]
[373284426,1752928238024,-390.95573311,0.00016623,2]
[373284427,1752928238045,-69.04426689,0.00016623,2]
[373284428,1752928238054,-431.55074311,0.00016623,2]
[373284429,1752928238067,-552.3362467,0.00016623,2]
[373284436,1752928238379,-982.28600446,0.00016623,2]
[373284438,1752928238488,-80.82700573,0.00016623,2]
[373284439,1752928238498,-460.0,0.00016623,2]
[373284440,1752928238507,-460.0,0.00016623,2]
[373284441,1752928238517,-460.0,0.00016623,2]
[373284442,1752928238526,-609.88,0.00016623,2]
[373284443,1752928238536,-460.0,0.00016623,2]
[373284444,1752928238546,-460.0,0.00016623,2]
[373284445,1752928238555,-460.0,0.00016623,2]
[373284446,1752928238565,-2495.42,0.00016623,2]
[373284447,1752928238574,-460.0,0.00016624,2]
[373284448,1752928238584,-460.0,0.00016624,2]
[373284449,1752928238593,-460.0,0.00016624,2]
[373284450,1752928238603,-504.85600732,0.00016624,2]
[373284451,1752928238612,-500.0,0.00016624,2]
[373284452,1752928238621,-509.09691531,0.00016624,2]
[373284453,1752928238630,-500.0,0.00016624,2]
[373284454,1752928238640,-500.0,0.00016624,2]
[373284455,1752928238649,-500.0,0.00016624,2]
[373284456,1752928238659,-189.91198335,0.00016624,2]
[373284457,1752928238668,-500.0,0.00016624,2]
[373284458,1752928238678,-500.0,0.00016624,2]
[373284459,1752928238687,-500.0,0.00016624,2]
[373284460,1752928238696,-500.0,0.00016624,2]
[373284461,1752928238706,-500.0,0.00016624,2]
[373284462,1752928238716,-291.08891852,0.00016624,2]
[373284463,1752928238726,-500.0,0.00016624,2]
[373284464,1752928238735,-295.6010337,0.00016624,2]
[373284465,1752928238744,-500.0,0.00016624,2]
[373284466,1752928238754,-500.0,0.00016624,2]
[373284467,1752928238763,-500.0,0.00016624,2]
[373284468,1752928238772,-500.0,0.00016624,2]
[373284469,1752928238781,-500.0,0.00016624,2]
[373284470,1752928238791,-500.0,0.00016624,2]
[373284471,1752928238800,-500.0,0.00016624,2]
[373284472,1752928238810,-500.0,0.00016624,2]
[373284473,1752928238819,-416.48803211,0.00016624,2]
[373284474,1752928238829,-500.0,0.00016624,2]
[373284475,1752928238838,-500.0,0.00016624,2]
[373284476,1752928238848,-500.0,0.00016624,2]
[373284477,1752928238858,-500.0,0.00016624,2]
[373284478,1752928238868,-500.0,0.00016624,2]
[373284479,1752928238878,-500.0,0.00016624,2]
[373284480,1752928238889,-500.0,0.00016624,2]
[373284481,1752928238899,-500.0,0.00016624,2]
[373284482,1752928238908,-500.0,0.00016624,2]
[373284483,1752928238917,-500.0,0.00016624,2]
[373284484,1752928238927,-500.0,0.00016624,2]
[373284485,1752928238936,-500.0,0.00016624,2]
[373284487,1752928238946,-500.0,0.00016624,2]
[373284488,1752928238955,-500.0,0.00016624,2]
[373284489,1752928238967,-500.0,0.00016624,2]
[373284490,1752928238976,-500.0,0.00016624,2]
[373284491,1752928238986,-162.04349389,0.00016624,2]
[373284492,1752928238996,-500.0,0.00016624,2]
[373284493,1752928239005,-500.0,0.00016624,2]
[373284494,1752928239014,-500.0,0.00016624,2]
[373284495,1752928239024,-500.0,0.00016624,2]
[373284496,1752928239038,-500.0,0.00016624,2]
[373284497,1752928239047,-500.0,0.00016624,2]
[373284498,1752928239056,-500.0,0.00016624,2]
[373284499,1752928239067,-500.0,0.00016624,2]
[373284500,1752928239077,-500.0,0.00016624,2]
[373284501,1752928239087,-500.0,0.00016624,2]
[373284502,1752928239096,-500.0,0.00016624,2]
[373284503,1752928239106,-500.0,0.00016624,2]
[373284504,1752928239116,-500.0,0.00016624,2]
[373284505,1752928239126,-500.0,0.00016624,2]
[373284506,1752928239135,-500.0,0.00016624,2]
[373284507,1752928239145,-500.0,0.00016624,2]
[373284508,1752928239154,-500.0,0.00016624,2]
[373284509,1752928239164,-500.0,0.00016624,2]
[373284510,1752928239173,-500.0,0.00016624,2]
[373284511,1752928239184,-500.0,0.00016624,2]
[373284512,1752928239193,-500.0,0.00016624,2]
[373284513,1752928239203,-500.0,0.00016624,2]
[373284514,1752928239212,-500.0,0.00016624,2]
[373284515,1752928239222,-500.0,0.00016624,2]
[373284516,1752928239231,-500.0,0.00016624,2]
[373284517,1752928239241,-500.0,0.00016624,2]
[373284518,1752928239250,-500.0,0.00016624,2]
[373284519,1752928239260,-500.0,0.00016624,2]
[373284520,1752928239270,-500.0,0.00016624,2]
[373284521,1752928239279,-500.0,0.00016624,2]
[373284522,1752928239289,-500.0,0.00016624,2]
[373284523,1752928239298,-500.0,0.00016624,2]
[373284524,1752928239307,-500.0,0.00016624,2]
[373284525,1752928239316,-500.0,0.00016624,2]
[373284526,1752928239326,-500.0,0.00016624,2]
[373284527,1752928239335,-500.0,0.00016624,2]
[373284528,1752928239345,-500.0,0.00016624,2]
[373284529,1752928239355,-500.0,0.00016624,2]
[373284530,1752928239365,-500.0,0.00016624,2]
[373284531,1752928239375,-500.0,0.00016624,2]
[373284532,1752928239384,-500.0,0.00016624,2]
[373284533,1752928239394,-227.08920494,0.00016624,2]
[373284534,1752928239404,-500.0,0.00016624,2]
[373284535,1752928239414,-500.0,0.00016624,2]
[373284536,1752928239426,-500.0,0.00016624,2]
[373284537,1752928239436,-500.0,0.00016624,2]
[373284538,1752928239446,-500.0,0.00016624,2]
[373284539,1752928239456,-500.0,0.00016624,2]
[373284540,1752928239467,-500.0,0.00016624,2]
[373284541,1752928239477,-500.0,0.00016624,2]
[373284542,1752928239488,-500.0,0.00016624,2]
[373284543,1752928239499,-500.0,0.00016624,2]
[373284544,1752928239508,-500.0,0.00016624,2]
[373284545,1752928239518,-500.0,0.00016624,2]
[373284546,1752928239529,-382.59714582,0.00016624,2]
[373284547,1752928239540,-500.0,0.00016624,2]
[373284548,1752928239551,-500.0,0.00016624,2]
[373284549,1752928239561,-500.0,0.00016624,2]
[373284550,1752928239571,-500.0,0.00016624,2]
[373284551,1752928239582,-500.0,0.00016624,2]
[373284552,1752928239592,-500.0,0.00016624,2]
[373284553,1752928239601,-500.0,0.00016624,2]
[373284554,1752928239611,-500.0,0.00016624,2]
[373284555,1752928239622,-500.0,0.00016624,2]
[373284556,1752928239631,-500.0,0.00016624,2]
[373284557,1752928239641,-500.0,0.00016624,2]
[373284558,1752928239650,-500.0,0.00016624,2]
[373284559,1752928239793,-500.0,0.00016624,2]
[373284560,1752928239803,-295.78261043,0.00016624,2]
[373284561,1752928239813,-543.80284449,0.00016624,2]
[373284562,1752928239823,-300.0,0.00016624,2]
[373284563,1752928239834,-500.0,0.00016624,2]
[373284564,1752928239844,-499.99999999,0.00016624,2]
[373284565,1752928239854,-460.0,0.00016624,2]
[373284566,1752928239866,-460.0,0.00016624,2]
[373284567,1752928239875,-461.53608633,0.00016624,2]
[373284568,1752928239885,-460.0,0.00016624,2]
[373284569,1752928239895,-460.0,0.00016624,2]
[373284570,1752928239904,-460.0,0.00016624,2]
[373284571,1752928239914,-460.0,0.00016624,2]
[373284572,1752928239923,-460.0,0.00016624,2]
[373284573,1752928239933,-1356.42,0.00016624,2]
[373284574,1752928239943,-460.0,0.00016624,2]
[373284575,1752928239953,-460.0,0.00016624,2]
[373284576,1752928239963,-652.47,0.00016624,2]
[373284577,1752928239973,-460.0,0.00016624,2]
[373284578,1752928239983,-460.0,0.00016624,2]
[373284580,1752928239992,-460.0,0.00016624,2]
[373284581,1752928240002,-460.0,0.00016624,2]
[373284582,1752928240011,-460.0,0.00016624,2]
[373284584,1752928240021,-460.0,0.00016624,2]
[373284587,1752928240037,-423.63,0.00016624,2]
[373284589,1752928240047,-460.0,0.00016624,2]
[373284591,1752928240057,-460.0,0.00016624,2]
[373284593,1752928240066,-460.0,0.00016624,2]
[373284595,1752928240077,-460.0,0.00016624,2]
[373284597,1752928240087,-497.27,0.00016624,2]
[373284599,1752928240096,-460.0,0.00016624,2]
[373284601,1752928240107,-460.0,0.00016624,2]
[373284603,1752928240117,-460.0,0.00016624,2]
[373284605,1752928240132,-1968.47,0.00016624,2]
[373284607,1752928240141,-460.0,0.00016624,2]
[373284609,1752928240151,-460.0,0.00016624,2]
[373284611,1752928240160,-460.0,0.00016624,2]
[373284613,1752928240170,-460.0,0.00016624,2]
[373284615,1752928240179,-5318.1071375,0.00016624,2]
[373284617,1752928240188,-460.0,0.00016625,2]
[373284619,1752928240198,-460.0,0.00016625,2]
[373284621,1752928240207,-460.0,0.00016625,2]
[373284622,1752928240217,-460.0,0.00016625,2]
[373284623,1752928240226,-460.0,0.00016625,2]
[373284624,1752928240235,-498.93244619,0.00016625,2]
[373284625,1752928240245,-464.19900311,0.00016625,2]
[373284626,1752928240254,-301.80839754,0.00016625,2]
[373284628,1752928240264,-460.0,0.00016625,2]
[373284631,1752928240273,-460.0,0.00016625,2]
[373284633,1752928240282,-460.0,0.00016625,2]
[373284635,1752928240291,-460.0,0.00016625,2]
[373284637,1752928240301,-460.0,0.00016625,2]
[373284639,1752928240310,-460.0,0.00016625,2]
[373284641,1752928240320,-460.0,0.00016625,2]
[373284643,1752928240330,-460.0,0.00016625,2]
[373284645,1752928240339,-460.0,0.00016625,2]
[373284647,1752928240348,-460.0,0.00016625,2]
[373284649,1752928240357,-460.0,0.00016625,2]
[373284650,1752928240370,-460.0,0.00016625,2]
[373284652,1752928240380,-500.0,0.00016625,2]
[373284654,1752928240390,-389.09419639,0.00016625,2]
[373284656,1752928240400,-460.0,0.00016625,2]
[373284658,1752928240410,-460.0,0.00016625,2]
[373284660,1752928240420,-460.0,0.00016625,2]
[373284662,1752928240430,-460.0,0.00016625,2]
[373284664,1752928240440,-460.0,0.00016625,2]
[373284665,1752928240450,-460.0,0.00016625,2]
[373284667,1752928240460,-460.0,0.00016625,2]
[373284670,1752928240472,-460.0,0.00016625,2]
[373284672,1752928240482,-363.06528692,0.00016625,2]
[373284673,1752928240491,-460.0,0.00016625,2]
[373284675,1752928240501,-460.0,0.00016625,2]
[373284677,1752928240511,-460.0,0.00016625,2]
[373284679,1752928240520,-460.0,0.00016625,2]
[373284681,1752928240530,-460.0,0.00016625,2]
[373284683,1752928240540,-460.0,0.00016625,2]
[373284685,1752928240549,-460.0,0.00016625,2]
[373284687,1752928240558,-460.0,0.00016625,2]
[373284689,1752928240568,-460.0,0.00016625,2]
[373284691,1752928240577,-460.0,0.00016625,2]
[373284692,1752928240587,-460.0,0.00016625,2]
[373284694,1752928240598,-460.0,0.00016625,2]
[373284695,1752928240607,-460.0,0.00016625,2]
[373284697,1752928240617,-460.0,0.00016625,2]
[373284698,1752928240627,-460.0,0.00016625,2]
[373284700,1752928240636,-460.0,0.00016625,2]
[373284702,1752928240645,-179.07314685,0.00016625,2]
[373284703,1752928240655,-460.0,0.00016625,2]
[373284705,1752928240665,-460.0,0.00016625,2]
[373284706,1752928240674,-460.0,0.00016625,2]
[373284708,1752928240684,-460.0,0.00016625,2]
[373284709,1752928240693,-460.0,0.00016625,2]
[373284711,1752928240702,-460.0,0.00016625,2]
[373284712,1752928240712,-1212.22,0.00016625,2]
[373284714,1752928240723,-460.0,0.00016625,2]
[373284716,1752928240733,-460.0,0.00016625,2]
[373284717,1752928240743,-7517.45,0.00016625,2]
[373284719,1752928240754,-1179.87,0.00016625,2]
[373284721,1752928240763,-460.0,0.00016625,2]
[373284723,1752928240773,-460.0,0.00016625,2]
[373284724,1752928240783,-460.0,0.00016625,2]
[373284726,1752928240793,-460.0,0.00016625,2]
[373284727,1752928240802,-460.0,0.00016625,2]
[373284729,1752928240812,-460.0,0.00016625,2]
[373284731,1752928240822,-460.0,0.00016625,2]
[373284732,1752928240831,-460.0,0.00016625,2]
[373284734,1752928240841,-460.0,0.00016625,2]
[373284736,1752928240850,-460.0,0.00016625,2]
[373284738,1752928240860,-1161.96,0.00016625,2]
[373284739,1752928240869,-460.0,0.00016625,2]
[373284741,1752928240878,-460.0,0.00016625,2]
[373284742,1752928240888,-460.0,0.00016625,2]
[373284744,1752928240897,-460.0,0.00016625,2]
[373284746,1752928240907,-460.0,0.00016625,2]
[373284748,1752928240917,-460.0,0.00016625,2]
[373284749,1752928240927,-460.0,0.00016625,2]
[373284751,1752928240936,-460.0,0.00016625,2]
[373284753,1752928240946,-724.2,0.00016625,2]
[373284755,1752928240956,-460.0,0.00016625,2]
[373284756,1752928240965,-460.0,0.00016625,2]
[373284758,1752928240976,-460.0,0.00016625,2]
[373284760,1752928240987,-457.19089677,0.00016625,2]
[373284761,1752928240996,-460.0,0.00016625,2]
[373284763,1752928241006,-587.42,0.00016625,2]
[373284765,1752928241016,-460.0,0.00016625,2]
[373284767,1752928241026,-460.0,0.00016625,2]
[373284768,1752928241040,-528.80188503,0.00016625,2]
[373284770,1752928241049,-460.0,0.00016625,2]
[373284771,1752928241059,-460.0,0.00016625,2]
[373284772,1752928241069,-460.0,0.00016625,2]
[373284773,1752928241079,-460.0,0.00016625,2]
[373284774,1752928241091,-460.0,0.00016625,2]
[373284776,1752928241101,-460.0,0.00016625,2]
[373284778,1752928241112,-861.19,0.00016625,2]
[373284780,1752928241121,-460.0,0.00016625,2]
[373284782,1752928241131,-500.0,0.00016625,2]
[373284784,1752928241142,-460.0,0.00016625,2]
[373284786,1752928241153,-460.0,0.00016625,2]
[373284788,1752928241162,-160.0,0.00016626,2]
[373284790,1752928241172,-361.91193367,0.00016626,2]
[373284792,1752928241181,-460.0,0.00016626,2]
[373284794,1752928241191,-460.0,0.00016626,2]
[373284796,1752928241200,-471.16920484,0.00016626,2]
[373284798,1752928241210,-460.0,0.00016626,2]
[373284800,1752928241220,-460.0,0.00016626,2]
[373284802,1752928241229,-460.0,0.00016626,2]
[373284804,1752928241239,-460.0,0.00016626,2]
[373284806,1752928241249,-464.15324044,0.00016626,2]
[373284808,1752928241258,-500.0,0.00016626,2]
[373284810,1752928241268,-590.35,0.00016626,2]
[373284811,1752928241278,-461.45609941,0.00016626,2]
[373284813,1752928241296,-460.0,0.00016626,2]
[373284815,1752928241306,-460.0,0.00016626,2]
[373284818,1752928241315,-460.0,0.00016626,2]
[373284820,1752928241328,-460.0,0.00016626,2]
[373284822,1752928241338,-462.93410712,0.00016626,2]
[373284824,1752928241347,-460.0,0.00016626,2]
[373284826,1752928241357,-446.26204571,0.00016626,2]
[373284827,1752928241368,-460.0,0.00016626,2]
[373284828,1752928241377,-286.77057827,0.00016626,2]
[373284829,1752928241387,-447.88057332,0.00016626,2]
[373284830,1752928241397,-460.0,0.00016626,2]
[373284831,1752928241408,-460.0,0.00016626,2]
[373284832,1752928241418,-460.0,0.00016626,2]
[373284833,1752928241427,-460.0,0.00016626,2]
[373284834,1752928241438,-464.2836076,0.00016626,2]
[373284835,1752928241448,-465.09424804,0.00016626,2]
[373284836,1752928241458,-460.0,0.00016626,2]
[373284837,1752928241469,-460.0,0.00016626,2]
[373284838,1752928241479,-460.0,0.00016626,2]
[373284839,1752928241489,-460.0,0.00016626,2]
[373284840,1752928241498,-461.56715771,0.00016626,2]
[373284841,1752928241509,-460.0,0.00016626,2]
[373284842,1752928241519,-460.0,0.00016626,2]
[373284843,1752928241528,-460.0,0.00016626,2]
[373284844,1752928241538,-460.0,0.00016626,2]
[373284845,1752928241548,-460.0,0.00016626,2]
[373284846,1752928241558,-500.0,0.00016626,2]
[373284847,1752928241567,-500.0,0.00016626,2]
[373284848,1752928241577,-500.0,0.00016626,2]
[373284849,1752928241587,-460.0,0.00016626,2]